[Event "New York Summer GM-B 2022"]
[Site "New York"]
[Date "2022.07.11"]
[Round "8.1"]
[White "Wang, Qibiao"]
[Black "Shmeliov, Denis"]
[Result "1/2-1/2"]
[ECO "B53"]
[WhiteElo "2365"]
[BlackElo "2436"]
[Annotator "ChessBase"]
[PlyCount "112"]
[EventDate "2022.07.08"]
[EventType "tourn"]
[EventCountry "USA"]
[SourceTitle "playchess.com"]
[Source "ChessBase"]
[SourceQuality "1"]
[TimeControl "5400+30"]

1. e4 {[%emt 0:00:03]} c5 {[%emt 0:02:56]} 2. Nf3 {[%emt 0:00:06]} d6 {[%emt 0:00:11]} 3. Nc3 {[%emt 0:00:06]} Nf6 {[%emt 0:00:17]} 4. d4 {[%emt 0:00:06]} cxd4 {[%emt 0:00:05]} 5. Qxd4 {[%emt 0:00:04]} Nc6 {[%emt 0:00:36]} 6. Qd3 {[%emt 0:00:04]} g6 {[%emt 0:04:46]} 7. Nd5 {[%emt 0:00:04]} Bg7 {[%emt 0:02:14]} 8. c3 {[%emt 0:00:05]} O-O {[%emt 0:01:47]} 9. Bg5 {[%emt 0:00:05]} h6 {[%emt 0:08:30]} 10. Bh4 {[%emt 0:00:36]} Nd7 {[%emt 0:02:51]} 11. Rd1 {[%emt 0:10:49]} g5 {[%emt 0:12:54]} 12. Bg3 {[%emt 0:00:16]} Rb8 {[%emt 0:06:03]} 13. Qc2 {[%emt 0:08:41]} b5 {[%emt 0:05:33]} 14. a3 {[%emt 0:02:24]} a5 {[%emt 0:04:22]} 15. Be2 {[%emt 0:01:46]} Nde5 {[%emt 0:03:56]} 16. Nxe5 {[%emt 0:10:14]} Nxe5 {[%emt 0:00:34]} 17. O-O {[%emt 0:00:31]} Bb7 {[%emt 0:07:41]} 18. f4 {[%emt 0:11:42]} gxf4 {[%emt 0:00:40]} 19. Nxf4 {[%emt 0:00:51]} Qb6+ {[%emt 0:02:49]} 20. Kh1 {[%emt 0:00:08]} Qc6 {[%emt 0:00:49]} 21. Nd5 {[%emt 0:03:36]} Rbe8 {[%emt 0:05:46]} 22. Qd2 {[%emt 0:49:13]} Nc4 {[%emt 0:06:56]} 23. Bxc4 {[%emt 0:00:00]} Qxc4 {[%emt 0:00:47]} 24. Rf4 {[%emt 0:00:00]} f6 {[%emt 0:12:40]} 25. Ne3 {[%emt 0:00:00]} Qf7 {[%emt 0:00:56]} 26. Nf5 {[%emt 0:00:00]} h5 {[%emt 0:00:42]} 27. Qe2 {[%emt 0:00:00]} Rd8 {[%emt 0:00:38]} 28. Qxb5 {[%emt 0:00:00]} e5 {[%emt 0:01:21]} 29. Rff1 {[%emt 0:00:00]} Qc7 {[%emt 0:00:18]} 30. Qe2 {[%emt 0:00:00]} d5 {[%emt 0:00:07]} 31. exd5 {[%emt 0:00:00]} Rxd5 {[%emt 0:00:06]} 32. Rxd5 {[%emt 0:00:00]} Bxd5 {[%emt 0:00:05]} 33. Qxh5 {[%emt 0:00:00]} Qb7 {[%emt 0:00:18]} 34. Qe2 {[%emt 0:00:00]} Rd8 {[%emt 0:00:12]} 35. Bh4 {[%emt 0:00:00]} Bh8 {[%emt 0:00:29]} 36. Qg4+ {[%emt 0:00:00]} Kf7 {[%emt 0:00:05]} 37. Ne3 {[%emt 0:00:00]} Be4 {[%emt 0:00:33]} 38. Bxf6 {[%emt 0:00:00]} Bxf6 {[%emt 0:00:20]} 39. Rxf6+ {[%emt 0:00:00]} Kxf6 {[%emt 0:00:05]} 40. Qh4+ {[%emt 0:00:00]} Kg6 {[%emt 0:01:14]} 41. Qxd8 {[%emt 0:00:00]} Qxb2 {[%emt 0:00:25]} 42. Qe8+ {[%emt 0:00:00]} Kh6 {[%emt 0:00:37]} 43. Qe6+ {[%emt 0:00:00]} Kh7 {[%emt 0:00:25]} 44. Qh3+ {[%emt 0:00:00]} Kg7 {[%emt 0:00:21]} 45. Qg3+ {[%emt 0:00:00]} Kf7 {[%emt 0:00:46]} 46. h4 {[%emt 0:00:00]} Qxa3 {[%emt 0:01:23]} 47. Nc4 {[%emt 0:01:48]} Qc1+ {[%emt 0:02:11]} 48. Kh2 {[%emt 0:00:02]} Qc2 {[%emt 0:00:06]} 49. Nxe5+ {[%emt 0:00:49]} Ke6 {[%emt 0:00:05]} 50. Nc4 {[%emt 0:00:39]} a4 {[%emt 0:00:14]} 51. Qd6+ {[%emt 0:00:30]} Kf7 {[%emt 0:00:13]} 52. Ne5+ {[%emt 0:00:06]} Kg7 {[%emt 0:00:12]} 53. Qe7+ {[%emt 0:00:19]} Kg8 {[%emt 0:00:05]} 54. Qf7+ {[%emt 0:05:21]} Kh8 {[%emt 0:00:03]} 55. Qf6+ {[%emt 0:00:17]} Kh7 {[%emt 0:00:08]} 56. Qg5 {[%emt 0:00:21]} Qxg2+ {[%emt 0:01:10]} 1/2-1/2

[Event "New York Summer GM-B 2022"]
[Site "New York"]
[Date "2022.07.11"]
[Round "8.2"]
[White "Zeltsan, Joseph"]
[Black "Yudasin, Leonid"]
[Result "1/2-1/2"]
[ECO "C10"]
[WhiteElo "2337"]
[BlackElo "2396"]
[Annotator "ChessBase"]
[PlyCount "65"]
[EventDate "2022.07.08"]
[EventType "tourn"]
[EventCountry "USA"]
[SourceTitle "playchess.com"]
[Source "ChessBase"]
[SourceQuality "1"]
[TimeControl "5400+30"]

1. e4 {[%emt 0:00:02]} e6 {[%emt 1:31:00]} 2. d4 {[%emt 0:00:21]} d5 {[%emt 0:00:00]} 3. Nc3 {[%emt 0:00:03]} dxe4 {[%emt 0:00:00]} 4. Nxe4 {[%emt 0:00:06]} Nd7 {[%emt 0:00:00]} 5. Nf3 {[%emt 0:01:08]} Ngf6 {[%emt 0:00:00]} 6. Nxf6+ {[%emt 0:01:16]} Nxf6 {[%emt 0:00:00]} 7. c3 {[%emt 0:01:50]} Be7 {[%emt 0:00:00]} 8. Bd3 {[%emt 0:03:13]} O-O {[%emt 0:00:00]} 9. Qc2 {[%emt 0:02:33]} b6 {[%emt 0:00:00]} 10. Be3 {[%emt 0:09:28]} Bb7 {[%emt 0:00:00]} 11. O-O-O {[%emt 0:00:14]} Qc8 {[%emt 0:00:00]} 12. Rhe1 {[%emt 0:04:15]} c5 {[%emt 0:00:00]} 13. Ne5 {[%emt 0:00:14]} Rd8 {[%emt 0:00:00]} 14. g4 {[%emt 0:19:14]} g6 {[%emt 0:00:00]} 15. h4 {[%emt 0:09:59]} Nd5 {[%emt 0:00:00]} 16. a3 {[%emt 0:24:50]} Nxe3 {[%emt 0:00:00]} 17. fxe3 {[%emt 0:00:01]} Bxh4 {[%emt 0:00:00]} 18. Rf1 {[%emt 0:03:52]} Rf8 {[%emt 0:00:00]} 19. Qh2 {[%emt 0:01:07]} Bg5 {[%emt 0:00:00]} 20. Nxf7 {[%emt 0:02:26]} Bxe3+ {[%emt 0:00:00]} 21. Kb1 {[%emt 0:00:34]} Qb8 {[%emt 0:00:00]} 22. Qh4 {[%emt 0:08:04]} Bf4 {[%emt 0:00:00]} 23. Ng5 {[%emt 0:00:20]} Bxg5 {[%emt 0:00:00]} 24. Qxg5 {[%emt 0:00:03]} Qc7 {[%emt 0:00:00]} 25. Bc4 {[%emt 0:01:31]} Rxf1 {[%emt 0:00:19]} 26. Rxf1 {[%emt 0:00:20]} Re8 {[%emt 0:00:15]} 27. Rf6 {[%emt 0:01:13]} Bd5 {[%emt 0:04:30]} 28. Bxd5 {[%emt 0:00:40]} exd5 {[%emt 0:00:02]} 29. Qxd5+ {[%emt 0:00:09]} Kg7 {[%emt 0:08:54]} 30. g5 {[%emt 0:00:15]} cxd4 {[%emt 0:00:00]} 31. Qxd4 {[%emt 0:02:00]} Qe5 {[%emt 0:00:00]} 32. Qd7+ {[%emt 0:00:01]} Re7 {[%emt 0:00:00]} 33. Qd8 {[%emt 0:05:38]} 1/2-1/2

[Event "New York Summer GM-B 2022"]
[Site "New York"]
[Date "2022.07.11"]
[Round "8.3"]
[White "Maiti, Milind"]
[Black "Tiglon, Bryce"]
[Result "1-0"]
[ECO "D85"]
[WhiteElo "2316"]
[BlackElo "2391"]
[Annotator "ChessBase"]
[PlyCount "105"]
[EventDate "2022.07.08"]
[EventType "tourn"]
[EventCountry "USA"]
[SourceTitle "playchess.com"]
[Source "ChessBase"]
[SourceQuality "1"]
[TimeControl "5400+30"]

1. d4 {[%emt 0:00:03]} Nf6 {[%emt 0:10:53]} 2. c4 {[%emt 0:00:07]} g6 {[%emt 0:00:29]} 3. Nc3 {[%emt 0:00:07]} d5 {[%emt 0:00:03]} 4. cxd5 {[%emt 0:00:06]} Nxd5 {[%emt 0:00:05]} 5. e4 {[%emt 0:00:06]} Nxc3 {[%emt 0:00:03]} 6. bxc3 {[%emt 0:00:05]} Bg7 {[%emt 0:00:01]} 7. Nf3 {[%emt 0:00:08]} c5 {[%emt 0:00:04]} 8. Be3 {[%emt 0:00:14]} Bg4 {[%emt 0:00:04]} 9. Rc1 {[%emt 0:00:15]} O-O {[%emt 0:00:12]} 10. Be2 {[%emt 0:00:21]} Qa5 {[%emt 0:00:04]} 11. O-O {[%emt 0:00:35]} Qxa2 {[%emt 0:00:53]} 12. Rb1 {[%emt 0:00:33]} cxd4 {[%emt 0:00:42]} 13. cxd4 {[%emt 0:00:24]} Nc6 {[%emt 0:01:04]} 14. d5 {[%emt 0:04:24]} Bxf3 {[%emt 0:04:17]} 15. Bxf3 {[%emt 0:11:49]} Ne5 {[%emt 0:00:07]} 16. Rxb7 {[%emt 0:03:52]} a5 {[%emt 0:08:00]} 17. Bc5 {[%emt 0:17:01]} Rfe8 {[%emt 0:27:19]} 18. Bxe7 {[%emt 0:10:02]} a4 {[%emt 0:04:25]} 19. d6 {[%emt 0:32:53]} Qe6 {[%emt 0:02:27]} 20. Be2 {[%emt 0:02:40]} a3 {[%emt 0:01:43]} 21. Bb5 {[%emt 0:02:03]} a2 {[%emt 0:27:16]} 22. Bxe8 {[%emt 0:02:07]} a1=Q {[%emt 0:03:12]} 23. Qxa1 {[%emt 0:00:16]} Nf3+ {[%emt 0:00:04]} 24. gxf3 {[%emt 0:00:08]} Bxa1 {[%emt 0:00:01]} 25. Bd7 {[%emt 0:06:32]} Qe5 {[%emt 0:00:02]} 26. Rfb1 {[%emt 0:01:13]} Kg7 {[%emt 0:04:18]} 27. Rb8 {[%emt 0:01:09]} Rxb8 {[%emt 0:00:45]} 28. Rxb8 {[%emt 0:00:05]} Bd4 {[%emt 0:00:06]} 29. Bh3 {[%emt 0:02:11]} Qa5 {[%emt 0:01:30]} 30. Bf8+ {[%emt 0:01:50]} Kf6 {[%emt 0:00:12]} 31. Be7+ {[%emt 0:00:45]} Kg7 {[%emt 0:00:33]} 32. Bf8+ {[%emt 0:00:53]} Kf6 {[%emt 0:00:02]} 33. Be7+ {[%emt 0:00:22]} Ke5 {[%emt 0:04:07]} 34. Kg2 {[%emt 0:00:42]} Bc5 {[%emt 0:00:53]} 35. Re8 {[%emt 0:01:16]} Kd4 {[%emt 0:00:13]} 36. Bf6+ {[%emt 0:00:20]} Kc4 {[%emt 0:00:10]} 37. d7 {[%emt 0:00:20]} Qd2 {[%emt 0:01:52]} 38. Bh4 {[%emt 0:00:21]} Bb6 {[%emt 0:00:02]} 39. Rc8+ {[%emt 0:00:12]} Kb5 {[%emt 0:00:17]} 40. d8=Q {[%emt 0:02:00]} Bxd8 {[%emt 0:00:06]} 41. Rxd8 {[%emt 0:00:00]} Qh6 {[%emt 0:00:30]} 42. Bg3 {[%emt 0:00:00]} Kc6 {[%emt 0:00:03]} 43. Rd6+ {[%emt 0:00:00]} Kc5 {[%emt 0:00:07]} 44. Rd7 {[%emt 0:00:06]} Qg7 {[%emt 0:00:01]} 45. Be6 {[%emt 0:00:56]} Qf6 {[%emt 0:00:04]} 46. Bd5 {[%emt 0:00:13]} h5 {[%emt 0:00:12]} 47. Rxf7 {[%emt 0:00:08]} Qd8 {[%emt 0:00:09]} 48. Rc7+ {[%emt 0:00:20]} Kb5 {[%emt 0:00:06]} 49. Rh7 {[%emt 0:00:39]} Kc5 {[%emt 0:00:21]} 50. h4 {[%emt 0:00:49]} Kd4 {[%emt 0:00:26]} 51. Rg7 {[%emt 0:00:34]} Qf6 {[%emt 0:00:04]} 52. Rg8 {[%emt 0:00:14]} Kc5 {[%emt 0:00:11]} 53. e5 {[%emt 0:00:52]} 1-0

[Event "New York Summer GM-B 2022"]
[Site "New York"]
[Date "2022.07.11"]
[Round "8.4"]
[White "Lenderman, Aleksandr"]
[Black "Paragua, Mark"]
[Result "1/2-1/2"]
[ECO "A11"]
[WhiteElo "2572"]
[BlackElo "2461"]
[Annotator "ChessBase"]
[PlyCount "119"]
[EventDate "2022.07.08"]
[EventType "tourn"]
[EventCountry "USA"]
[SourceTitle "playchess.com"]
[Source "ChessBase"]
[SourceQuality "1"]
[TimeControl "5400+30"]

1. c4 {[%emt 0:00:02]} c6 {[%emt 0:00:57]} 2. Nf3 {[%emt 0:02:01]} d5 {[%emt 0:00:15]} 3. g3 {[%emt 0:00:50]} Nf6 {[%emt 0:01:03]} 4. Bg2 {[%emt 0:00:09]} g6 {[%emt 0:00:06]} 5. b3 {[%emt 0:00:20]} d4 {[%emt 0:04:23]} 6. Bb2 {[%emt 0:04:13]} c5 {[%emt 0:00:06]} 7. b4 {[%emt 0:06:27]} Bg7 {[%emt 0:01:36]} 8. bxc5 {[%emt 0:02:25]} Nc6 {[%emt 0:00:47]} 9. Qa4 {[%emt 0:08:50]} O-O {[%emt 0:02:52]} 10. d3 {[%emt 0:01:13]} e5 {[%emt 0:09:37]} 11. Nbd2 {[%emt 0:01:05]} Re8 {[%emt 0:02:54]} 12. O-O {[%emt 0:12:22]} h6 {[%emt 0:06:29]} 13. Rad1 {[%emt 0:03:16]} Bf8 {[%emt 0:02:19]} 14. Ba3 {[%emt 0:04:55]} Bd7 {[%emt 0:05:33]} 15. Qc2 {[%emt 0:03:56]} b6 {[%emt 0:02:05]} 16. e3 {[%emt 0:07:04]} Bxc5 {[%emt 0:36:10]} 17. Bxc5 {[%emt 0:01:29]} bxc5 {[%emt 0:00:05]} 18. Nb3 {[%emt 0:00:22]} Nb4 {[%emt 0:06:22]} 19. Qd2 {[%emt 0:04:58]} e4 {[%emt 0:00:42]} 20. exd4 {[%emt 0:00:56]} exf3 {[%emt 0:02:26]} 21. Bxf3 {[%emt 0:00:20]} Nc6 {[%emt 0:04:39]} 22. dxc5 {[%emt 0:01:14]} Ne5 {[%emt 0:00:13]} 23. Bg2 {[%emt 0:03:01]} Bg4 {[%emt 0:01:08]} 24. f3 {[%emt 0:00:57]} Bf5 {[%emt 0:00:07]} 25. Rfe1 {[%emt 0:03:07]} h5 {[%emt 0:07:18]} 26. h3 {[%emt 0:03:56]} Qb8 {[%emt 0:02:32]} 27. g4 {[%emt 0:01:42]} hxg4 {[%emt 0:00:31]} 28. fxg4 {[%emt 0:00:21]} Nfxg4 {[%emt 0:00:41]} 29. hxg4 {[%emt 0:00:37]} Bxg4 {[%emt 0:00:06]} 30. d4 {[%emt 0:07:19]} Nxc4 {[%emt 0:00:48]} 31. Qc3 {[%emt 0:03:53]} Bxd1 {[%emt 0:00:04]} 32. Rxe8+ {[%emt 0:00:25]} Qxe8 {[%emt 0:00:04]} 33. Bxa8 {[%emt 0:00:06]} Qxa8 {[%emt 0:01:05]} 34. Qxc4 {[%emt 0:00:02]} Qe4 {[%emt 0:00:31]} 35. Kf2 {[%emt 0:01:51]} Qf4+ {[%emt 0:00:42]} 36. Ke1 {[%emt 0:00:25]} Bf3 {[%emt 0:00:26]} 37. Qd3 {[%emt 0:01:28]} g5 {[%emt 0:00:33]} 38. Qd2 {[%emt 0:00:15]} Qh4+ {[%emt 0:00:07]} 39. Qf2 {[%emt 0:00:38]} Qe4+ {[%emt 0:00:23]} 40. Kd2 {[%emt 0:00:32]} g4 {[%emt 0:01:06]} 41. Qh4 {[%emt 0:01:44]} Qf4+ {[%emt 0:00:22]} 42. Kc3 {[%emt 0:00:10]} Kg7 {[%emt 0:00:06]} 43. Kb4 {[%emt 0:01:50]} Bd5 {[%emt 0:00:23]} 44. Kb5 {[%emt 0:01:37]} a6+ {[%emt 0:01:09]} 45. Ka5 {[%emt 0:00:57]} Kg6 {[%emt 0:00:22]} 46. Qd8 {[%emt 0:00:42]} Qg5 {[%emt 0:00:43]} 47. Qg8+ {[%emt 0:00:43]} Kf5 {[%emt 0:00:15]} 48. Qh7+ {[%emt 0:01:55]} Kf4 {[%emt 0:00:28]} 49. Nc1 {[%emt 0:00:26]} g3 {[%emt 0:00:15]} 50. Qd3 {[%emt 0:00:36]} Bf3 {[%emt 0:00:32]} 51. Ne2+ {[%emt 0:05:29]} Bxe2 {[%emt 0:00:05]} 52. Qd2+ {[%emt 0:00:31]} Kf5 {[%emt 0:00:20]} 53. Qc2+ {[%emt 0:00:12]} Kf6 {[%emt 0:00:48]} 54. Qxe2 {[%emt 0:00:07]} g2 {[%emt 0:00:04]} 55. Qf2+ {[%emt 0:00:11]} Ke7 {[%emt 0:00:13]} 56. Qg1 {[%emt 0:00:16]} Kd7 {[%emt 0:00:57]} 57. Kb6 {[%emt 0:00:52]} Qf6+ {[%emt 0:00:09]} 58. Ka7 {[%emt 0:00:18]} Qf1 {[%emt 0:01:35]} 59. Qh2 {[%emt 0:00:06]} g1=Q {[%emt 0:00:12]} 60. Qd6+ {[%emt 0:00:25]} 1/2-1/2

[Event "New York Summer GM-B 2022"]
[Site "New York"]
[Date "2022.07.11"]
[Round "8.5"]
[White "Griffith, Kyron"]
[Black "Jacobson, Aaron"]
[Result "0-1"]
[ECO "C70"]
[WhiteElo "2357"]
[BlackElo "2305"]
[Annotator "ChessBase"]
[PlyCount "98"]
[EventDate "2022.07.08"]
[EventType "tourn"]
[EventCountry "USA"]
[SourceTitle "playchess.com"]
[Source "ChessBase"]
[SourceQuality "1"]
[TimeControl "5400+30"]

1. e4 {[%emt 0:00:02]} e5 {[%emt 0:17:40]} 2. Nf3 {[%emt 0:00:06]} Nc6 {[%emt 0:00:04]} 3. Bb5 {[%emt 0:00:16]} a6 {[%emt 0:00:05]} 4. Ba4 {[%emt 0:00:03]} f5 {[%emt 0:00:11]} 5. d4 {[%emt 0:01:32]} exd4 {[%emt 0:00:12]} 6. e5 {[%emt 0:02:06]} b5 {[%emt 0:00:16]} 7. Bb3 {[%emt 0:00:05]} Bb7 {[%emt 0:00:43]} 8. O-O {[%emt 0:03:38]} Na5 {[%emt 0:00:07]} 9. Nxd4 {[%emt 0:04:52]} c5 {[%emt 0:00:07]} 10. Bxg8 {[%emt 0:01:43]} cxd4 {[%emt 0:00:12]} 11. Bb3 {[%emt 0:00:35]} Nxb3 {[%emt 0:00:36]} 12. axb3 {[%emt 0:00:02]} Qb6 {[%emt 0:00:10]} 13. c3 {[%emt 0:03:40]} Be7 {[%emt 0:01:29]} 14. cxd4 {[%emt 0:02:27]} O-O {[%emt 0:00:43]} 15. Nc3 {[%emt 0:06:14]} f4 {[%emt 0:03:38]} 16. f3 {[%emt 0:02:45]} d6 {[%emt 0:00:09]} 17. exd6 {[%emt 0:03:35]} Bxd6 {[%emt 0:00:22]} 18. Kh1 {[%emt 0:03:04]} Rad8 {[%emt 0:02:51]} 19. Qd3 {[%emt 0:12:16]} Be5 {[%emt 0:25:02]} 20. d5 {[%emt 0:00:15]} b4 {[%emt 0:03:23]} 21. Na4 {[%emt 0:01:25]} Qd4 {[%emt 0:03:36]} 22. Qxd4 {[%emt 0:13:55]} Bxd4 {[%emt 0:00:16]} 23. Bd2 {[%emt 0:00:01]} a5 {[%emt 0:00:53]} 24. Be1 {[%emt 0:01:15]} Bxd5 {[%emt 0:13:52]} 25. Bf2 {[%emt 0:00:33]} Bxf2 {[%emt 0:00:18]} 26. Rxf2 {[%emt 0:00:02]} Bxb3 {[%emt 0:00:08]} 27. Nc5 {[%emt 0:00:22]} Rd1+ {[%emt 0:00:32]} 28. Rxd1 {[%emt 0:11:37]} Bxd1 {[%emt 0:00:12]} 29. Rd2 {[%emt 0:00:02]} Rc8 {[%emt 0:00:57]} 30. Rd5 {[%emt 0:00:02]} a4 {[%emt 0:04:28]} 31. h4 {[%emt 0:00:09]} Bc2 {[%emt 0:05:55]} 32. Na6 {[%emt 0:00:02]} a3 {[%emt 0:01:28]} 33. bxa3 {[%emt 0:00:46]} b3 {[%emt 0:01:15]} 34. Rb5 {[%emt 0:00:21]} Bd3 {[%emt 0:00:45]} 35. Rxb3 {[%emt 0:00:03]} Bxa6 {[%emt 0:00:08]} 36. Rb4 {[%emt 0:00:03]} Rc4 {[%emt 0:00:25]} 37. Rb6 {[%emt 0:04:20]} Ra4 {[%emt 0:04:11]} 38. Kh2 {[%emt 0:00:08]} Bc4 {[%emt 0:00:38]} 39. Rc6 {[%emt 0:01:05]} Kf7 {[%emt 0:00:35]} 40. h5 {[%emt 0:01:31]} h6 {[%emt 0:02:48]} 41. Kh3 {[%emt 0:07:05]} Be6+ {[%emt 0:00:36]} 42. Kh4 {[%emt 0:00:02]} Rxa3 {[%emt 0:00:10]} 43. Rc1 {[%emt 0:00:02]} Ra2 {[%emt 0:00:18]} 44. Rd1 {[%emt 0:01:56]} Kf6 {[%emt 0:01:07]} 45. Rd4 {[%emt 0:01:21]} Rxg2 {[%emt 0:02:30]} 46. Rxf4+ {[%emt 0:00:02]} Bf5 {[%emt 0:00:22]} 47. Rb4 {[%emt 0:01:26]} Rh2+ {[%emt 0:00:08]} 48. Kg3 {[%emt 0:00:03]} Rxh5 {[%emt 0:00:07]} 49. Rb6+ {[%emt 0:00:03]} Be6 {[%emt 0:00:06]} 0-1

[Event "New York Summer GM-B 2022"]
[Site "New York"]
[Date "2022.07.12"]
[Round "9.1"]
[White "Jacobson, Aaron"]
[Black "Wang, Qibiao"]
[Result "1/2-1/2"]
[ECO "A17"]
[WhiteElo "2305"]
[BlackElo "2365"]
[Annotator "ChessBase"]
[PlyCount "37"]
[EventDate "2022.07.08"]
[EventType "tourn"]
[EventCountry "USA"]
[SourceTitle "playchess.com"]
[Source "ChessBase"]
[SourceQuality "1"]
[TimeControl "5400+30"]

1. Nf3 {[%emt 0:02:39]} d5 {[%emt 0:00:07]} 2. e3 {[%emt 0:00:06]} Nf6 {[%emt 0:00:51]} 3. c4 {[%emt 0:00:10]} e6 {[%emt 0:00:23]} 4. Nc3 {[%emt 0:01:07]} b6 {[%emt 0:02:22]} 5. b3 {[%emt 0:00:52]} Bb7 {[%emt 0:00:04]} 6. Bb2 {[%emt 0:00:33]} a6 {[%emt 0:00:12]} 7. cxd5 {[%emt 0:03:20]} exd5 {[%emt 0:00:07]} 8. g3 {[%emt 0:02:00]} d4 {[%emt 0:09:00]} 9. Nb1 {[%emt 0:01:13]} dxe3 {[%emt 0:00:55]} 10. fxe3 {[%emt 0:00:11]} Bd6 {[%emt 0:01:04]} 11. Bg2 {[%emt 0:00:55]} O-O {[%emt 0:02:40]} 12. O-O {[%emt 0:00:05]} Nbd7 {[%emt 0:00:29]} 13. Qc2 {[%emt 0:05:38]} h6 {[%emt 0:06:16]} 14. Nd4 {[%emt 0:07:31]} Bxg2 {[%emt 0:01:24]} 15. Kxg2 {[%emt 0:00:02]} Ne5 {[%emt 0:12:09]} 16. Nf5 {[%emt 0:05:28]} Re8 {[%emt 0:01:34]} 17. Nc3 {[%emt 0:12:33]} Bb4 {[%emt 0:01:36]} 18. Rad1 {[%emt 0:08:35]} Qd3 {[%emt 0:04:27]} 19. Qxd3 {[%emt 0:01:58]} 1/2-1/2

[Event "New York Summer GM-B 2022"]
[Site "New York"]
[Date "2022.07.12"]
[Round "9.3"]
[White "Tiglon, Bryce"]
[Black "Lenderman, Aleksandr"]
[Result "1/2-1/2"]
[ECO "B06"]
[WhiteElo "2391"]
[BlackElo "2572"]
[Annotator "ChessBase"]
[PlyCount "45"]
[EventDate "2022.07.08"]
[EventType "tourn"]
[EventCountry "USA"]
[SourceTitle "playchess.com"]
[Source "ChessBase"]
[SourceQuality "1"]
[TimeControl "5400+30"]

1. e4 {[%emt 0:03:21]} g6 {[%emt 0:00:23]} 2. d4 {[%emt 0:00:17]} Bg7 {[%emt 0:00:12]} 3. Nc3 {[%emt 0:00:06]} d6 {[%emt 0:00:15]} 4. Be3 {[%emt 0:00:05]} a6 {[%emt 0:00:13]} 5. Nf3 {[%emt 0:00:53]} b5 {[%emt 0:00:52]} 6. Bd3 {[%emt 0:00:25]} Bb7 {[%emt 0:00:51]} 7. O-O {[%emt 0:00:52]} Nd7 {[%emt 0:01:06]} 8. a4 {[%emt 0:00:43]} b4 {[%emt 0:00:22]} 9. Ne2 {[%emt 0:00:54]} Ngf6 {[%emt 0:01:52]} 10. e5 {[%emt 0:00:22]} Nd5 {[%emt 0:01:52]} 11. e6 {[%emt 0:00:23]} fxe6 {[%emt 0:00:14]} 12. Ng5 {[%emt 0:00:06]} Nf8 {[%emt 0:00:13]} 13. c4 {[%emt 0:00:24]} bxc3 {[%emt 0:01:21]} 14. bxc3 {[%emt 0:00:15]} Qd7 {[%emt 0:04:48]} 15. c4 {[%emt 0:00:52]} Nb4 {[%emt 0:01:38]} 16. Be4 {[%emt 0:12:52]} Bxe4 {[%emt 0:05:07]} 17. Nxe4 {[%emt 0:00:03]} Qc6 {[%emt 0:00:18]} 18. N2c3 {[%emt 0:16:34]} Qxc4 {[%emt 0:04:46]} 19. Rc1 {[%emt 0:04:39]} Nd3 {[%emt 0:03:02]} 20. Qe2 {[%emt 0:04:06]} d5 {[%emt 0:02:56]} 21. Nxd5 {[%emt 0:03:30]} Qxd5 {[%emt 0:00:09]} 22. Qxd3 {[%emt 0:00:06]} Nd7 {[%emt 0:00:34]} 23. Rxc7 {[%emt 0:04:23]} 1/2-1/2

[Event "New York Summer GM-B 2022"]
[Site "New York"]
[Date "2022.07.11"]
[Round "9.5"]
[White "Shmeliov, Denis"]
[Black "Zeltsan, Joseph"]
[Result "1/2-1/2"]
[ECO "D38"]
[WhiteElo "2436"]
[BlackElo "2337"]
[Annotator "ChessBase"]
[PlyCount "51"]
[EventDate "2022.07.08"]
[EventType "tourn"]
[EventCountry "USA"]
[SourceTitle "playchess.com"]
[Source "ChessBase"]
[SourceQuality "1"]
[TimeControl "5400+30"]

1. d4 {[%emt 0:00:07]} Nf6 {[%emt 0:00:04]} 2. c4 {[%emt 0:00:05]} e6 {[%emt 0:00:02]} 3. Nf3 {[%emt 0:00:30]} d5 {[%emt 0:00:29]} 4. Nc3 {[%emt 0:00:06]} Bb4 {[%emt 0:00:08]} 5. cxd5 {[%emt 0:00:09]} exd5 {[%emt 0:00:03]} 6. Bg5 {[%emt 0:00:08]} h6 {[%emt 0:00:04]} 7. Bh4 {[%emt 0:00:05]} O-O {[%emt 0:00:04]} 8. e3 {[%emt 0:00:46]} Bf5 {[%emt 0:00:12]} 9. Be2 {[%emt 0:00:05]} Nbd7 {[%emt 0:00:04]} 10. Qb3 {[%emt 0:00:16]} Qe7 {[%emt 0:00:04]} 11. a3 {[%emt 0:04:43]} Bxc3+ {[%emt 0:00:35]} 12. Qxc3 {[%emt 0:00:11]} Qe6 {[%emt 0:00:06]} 13. O-O {[%emt 0:09:10]} c6 {[%emt 0:00:23]} 14. Nd2 {[%emt 0:01:33]} Rfe8 {[%emt 0:05:04]} 15. b4 {[%emt 0:03:06]} Bg4 {[%emt 0:10:31]} 16. Bd3 {[%emt 0:06:29]} g5 {[%emt 0:00:24]} 17. Bg3 {[%emt 0:00:07]} Bf5 {[%emt 0:00:03]} 18. Rfc1 {[%emt 0:10:30]} Bxd3 {[%emt 0:03:51]} 19. Qxd3 {[%emt 0:00:15]} Rac8 {[%emt 0:17:58]} 20. b5 {[%emt 0:08:34]} c5 {[%emt 0:00:57]} 21. dxc5 {[%emt 0:09:21]} Nxc5 {[%emt 0:00:07]} 22. Qd4 {[%emt 0:00:11]} b6 {[%emt 0:00:14]} 23. Rd1 {[%emt 0:45:33]} Nfe4 {[%emt 1:00:33]} 24. Nxe4 {[%emt 0:00:30]} dxe4 25. Qd6 {[%emt 0:00:30]} Nd3 {[%emt 0:01:00]} 26. Be5 1/2-1/2